bitfinex/quotes_SOLUSD_20251206
["timestamp","ask_amount","ask_price","bid_price","bid_amount"]
[1765006723097,8.26,133.0,132.97,70.84035199]
[1765006723270,8.96,133.0,132.97,70.84035199]
[1765006723471,8.96,133.0,132.97,73.88094953]
[1765006725487,8.96,133.0,132.95,17.028864]
[1765006725488,3.74059754,132.99,132.95,17.028864]
[1765006725700,0.7,132.98,132.95,17.028864]
[1765006725869,8.26,132.97,132.93,3.76059754]
[1765006726073,11.30059754,132.97,132.92,3.76059754]
[1765006726274,0.7,132.96,132.92,3.76059754]
[1765006726597,0.7,132.96,132.93,0.72]
[1765006726993,0.7,132.96,132.93,8.24246454]
[1765006728169,0.7,132.96,132.93,11.28306208]
[1765006729401,0.7,132.96,132.93,8.24246454]
[1765006731803,0.7,132.96,132.93,11.28306208]
[1765006732390,0.7,132.96,132.93,11.26306208]
[1765006732703,0.7,132.96,132.94,0.7]
[1765006733397,7.5200225,132.98,132.94,11.26263135]
[1765006733600,8.26,132.97,132.95,0.7]
[1765006733804,8.26,132.97,132.95,63.3]
[1765006736202,8.26,132.97,132.96,0.7]
[1765006736503,10.5601483,132.99,132.96,0.7]
[1765006736696,8.26,132.98,132.96,0.7]
[1765006738195,8.26,132.98,132.96,63.3]
[1765006738905,8.93,132.98,132.96,62.6]
[1765006739101,16.45016588,132.98,132.96,62.6]
[1765006739813,3.71059754,132.97,132.96,62.6]
[1765006740806,11.23109088,132.97,132.96,62.6]
[1765006741295,30.03232424,132.97,132.9,63.3]
[1765006741496,0.67,132.96,132.9,3.74059754]
[1765006741703,3.04059754,132.94,132.9,0.7]
[1765006742088,0.67,132.93,132.9,0.7]
[1765006742294,8.26,132.92,132.9,0.7]
[1765006743506,8.26,132.92,132.88,25.11880892]
[1765006743507,11.30059754,132.92,132.88,0.7]
[1765006743808,0.67,132.91,132.88,0.7]
[1765006744106,3.71059754,132.91,132.87,0.7]
[1765006744485,8.19445447,132.9,132.87,0.7]
[1765006744685,8.26,132.89,132.87,0.7]
[1765006750728,8.26,132.89,132.87,8.2258916]
[1765006751430,8.26,132.89,132.87,0.7]
[1765006752328,8.96,132.89,132.87,62.6]
[1765006752497,0.7,132.88,132.87,62.6]
[1765006752698,0.7,132.88,132.85,63.3]
[1765006753215,19.52564363,132.89,132.86,0.7]
[1765006754412,19.52564363,132.89,132.85,65.64059754]
[1765006754413,3.74059754,132.88,132.85,62.6]
[1765006754603,3.74059754,132.88,132.84,0.7]
[1765006754804,0.7,132.87,132.84,0.7]
[1765006755005,8.26,132.86,132.83,0.2]
[1765006755318,8.26,132.86,132.83,0.9]
[1765006755620,8.96,132.86,132.83,0.9]
[1765006756520,0.7,132.85,132.83,0.2]
[1765006756715,8.26,132.84,132.83,0.9]
[1765006757027,8.26,132.85,132.83,3.94059754]
[1765006757234,8.26,132.85,132.84,0.7]
[1765006757916,8.26,132.85,132.84,3.74059754]
[1765006760937,8.26,132.85,132.84,20.07839551]
[1765006762004,8.26,132.85,132.84,82.67839551]
[1765006763005,8.28,132.88,132.84,82.67839551]
[1765006763206,8.28,132.88,132.86,3.04059754]
[1765006763810,8.28,132.88,132.87,0.7]
[1765006764226,8.28,132.88,132.86,63.3]
[1765006764429,8.28,132.88,132.86,66.34059754]
[1765006764812,8.28,132.88,132.87,0.7]
[1765006765223,8.28,132.88,132.86,65.64059754]
[1765006765420,8.28,132.88,132.86,66.34059754]
[1765006766214,8.28,132.88,132.87,0.7]
[1765006766614,8.28,132.88,132.87,63.3]
[1765006772437,8.28,132.88,132.87,73.86675092]
[1765006773022,0.7,132.93,132.87,82.67669584]
[1765006773238,8.28,132.92,132.88,3.74059754]
[1765006773534,3.04059754,132.9,132.87,62.6]
[1765006773836,8.28,132.89,132.87,62.6]
[1765006774040,8.98,132.89,132.87,62.6]
[1765006774742,8.98,132.89,132.87,63.3]
[1765006778037,8.28,132.89,132.87,63.3]
[1765006780145,9.0,132.89,132.87,62.6]
[1765006781235,9.0,132.89,132.87,63.29]
[1765006781545,8.28,132.89,132.87,63.29]
[1765006782350,0.72,132.88,132.87,62.6]
[1765006782644,8.28,132.89,132.87,62.6]
[1765006782853,9.0,132.89,132.87,63.29]
[1765006783353,8.28,132.89,132.87,63.29]
[1765006783554,8.28,132.89,132.87,68.04926493]
[1765006784052,8.28,132.89,132.87,67.35926493]
[1765006784355,0.72,132.88,132.87,62.6]
[1765006784530,9.0,132.89,132.87,62.6]
[1765006786251,8.28,132.89,132.88,0.69]
[1765006786749,8.2437102,132.92,132.88,5.44926493]
[1765006786927,8.28,132.9,132.89,4.75926493]
[1765006787256,8.28,132.9,132.89,5.44926493]
[1765006787732,8.28,132.9,132.89,75.57428562]
[1765006787938,8.28,132.9,132.89,84.38423054]
[1765006788141,8.28,132.92,132.89,84.38423054]
[1765006788340,8.28,132.92,132.91,4.75926493]
[1765006788535,8.28,132.92,132.91,67.35926493]
[1765006788753,8.28,132.92,132.91,68.04926493]
[1765006790336,8.28,132.94,132.91,84.38309819]
[1765006790539,8.28,132.94,132.92,5.44926493]
[1765006790735,8.28,132.94,132.93,4.75926493]
[1765006790938,8.28,132.94,132.93,5.44926493]
[1765006794540,8.24063496,132.97,132.93,5.44926493]
[1765006794733,39.86850876,132.98,132.94,5.44926493]
[1765006794734,8.28,132.96,132.94,5.44926493]
[1765006794935,8.26,132.96,132.95,4.75926493]
[1765006795236,8.26,132.96,132.95,5.44926493]
[1765006795552,8.26,132.96,132.94,5.41926493]
[1765006796337,0.68,132.95,132.93,62.6]
[1765006797356,15.78149523,132.96,132.93,62.6]
[1765006797562,0.68,132.94,132.91,0.66]
[1765006797860,8.28,132.93,132.92,0.66]
[1765006800157,12.96104272,132.95,132.92,0.66]
[1765006800356,8.28,132.94,132.92,0.66]
[1765006803573,8.28,132.94,132.92,63.26]
[1765006804368,8.96,132.94,132.92,62.6]
[1765006805049,8.28,132.94,132.92,63.26]
[1765006806060,8.28,132.94,132.92,62.6]
[1765006806245,8.96,132.94,132.92,62.6]
[1765006806658,15.80237782,132.94,132.92,62.6]
[1765006806861,0.68,132.93,132.92,62.6]
[1765006807157,5.43926493,132.93,132.92,62.6]
[1765006807748,0.68,132.93,132.92,62.6]
[1765006809464,8.20275633,132.93,132.89,68.01926493]
[1765006810961,8.20275633,132.93,132.9,0.68]
[1765006811664,7.52275633,132.93,132.89,67.35926493]
[1765006811968,0.68,132.92,132.89,67.35926493]
[1765006812169,8.28,132.91,132.89,67.35926493]
[1765006812771,8.28,132.91,132.89,68.03926493]
[1765006815271,8.20275633,132.93,132.9,0.68]
[1765006815447,8.28,132.91,132.9,68.03926493]
[1765006819576,8.28,132.91,132.9,75.5637194]
[1765006819874,8.28,132.93,132.9,75.5637194]
[1765006820060,8.28,132.93,132.91,0.68]
[1765006821369,8.28,132.93,132.91,63.28]
[1765006821571,8.28,132.93,132.92,0.68]
[1765006822271,8.28,132.93,132.91,63.28]
[1765006824773,8.96,132.93,132.91,62.6]
[1765006825673,16.48277093,132.93,132.91,63.28]
[1765006826448,15.80277093,132.93,132.91,63.28]
[1765006827376,15.80277093,132.93,132.91,0.68]
[1765006833078,8.28,132.93,132.91,0.68]
[1765006833268,8.28,132.93,132.91,68.03926493]
[1765006833468,8.28,132.93,132.92,0.68]
[1765006834685,16.988864,132.97,132.92,5.43926493]
[1765006834869,8.26,132.96,132.93,4.75926493]
[1765006835075,8.26,132.96,132.93,0.68]
[1765006835273,8.94,132.96,132.93,0.68]
[1765006839191,8.94,132.96,132.93,63.28]
[1765006840390,8.26,132.96,132.94,0.7]
[1765006846600,8.98,132.96,132.93,63.3]
[1765006847694,8.98,132.96,132.94,0.7]
[1765006847897,8.98,132.96,132.93,62.6]
[1765006848099,8.98,132.96,132.93,63.3]
[1765006850408,8.98,132.96,132.94,0.67]
[1765006852294,8.26,132.96,132.94,0.67]
[1765006854086,8.26,132.95,132.94,0.67]
[1765006855208,8.26,132.95,132.94,11.23533637]
[1765006860500,41.6612095,132.99,132.94,82.64528129]
[1765006860696,8.26,132.98,132.96,3.04314591]
[1765006860893,8.26,132.98,132.96,65.64314591]
[1765006861111,8.26,132.98,132.96,66.31314591]
[1765006861617,0.72,132.97,132.96,62.6]
[1765006862521,19.54338942,132.98,132.96,62.6]
[1765006862932,18.82338942,132.98,132.96,62.6]
[1765006863130,0.72,132.97,132.96,62.6]
[1765006865113,3.76314591,132.97,132.96,62.6]
[1765006866020,3.76314591,132.97,132.94,63.27]
[1765006866833,0.72,132.97,132.94,63.27]
[1765006867138,3.76314591,132.97,132.94,63.27]
[1765006867618,18.82338942,132.98,132.94,62.6]
[1765006867821,19.54338942,132.98,132.95,0.67]
[1765006868317,16.50024351,132.98,132.95,0.67]
[1765006870026,8.24024351,132.98,132.95,0.67]
[1765006870199,8.26,132.97,132.95,0.67]
[1765006870706,8.26,132.97,132.95,11.23473911]
[1765006870901,8.26,132.97,132.96,0.66]
[1765006871225,8.26,132.97,132.96,3.70314591]
[1765006871417,8.26,132.97,132.96,0.66]
[1765006871905,8.26,132.97,132.96,63.26]
[1765006877826,8.26,132.97,132.96,0.66]
[1765006879602,8.26,132.97,132.96,8.18105896]
[1765006879803,8.26,132.97,132.96,11.22420487]
[1765006880225,8.26,132.97,132.96,3.70314591]
[1765006880426,8.26,132.97,132.96,0.66]
[1765006880924,8.26,132.97,132.96,11.22420487]
[1765006881324,8.26,132.99,132.96,11.22420487]
[1765006881513,8.26,132.99,132.97,0.66]
[1765006881820,7.51839911,133.01,132.97,66.40314591]
[1765006882020,8.26,133.0,132.98,3.04314591]
[1765006882207,8.26,133.0,132.98,3.70314591]
[1765006882407,8.26,133.0,132.99,0.66]
[1765006883118,8.26,133.0,132.99,3.70314591]
[1765006883717,8.26,133.0,132.99,11.22250826]
[1765006885527,8.26,133.0,132.99,0.66]
[1765006886625,8.26,133.0,132.99,63.36]
[1765006886930,8.26,133.01,132.99,63.36]
[1765006887228,8.26,133.01,133.0,0.66]
[1765006890411,11.2704146,133.03,133.0,0.66]
[1765006890614,8.26,133.02,133.0,0.66]
[1765006893436,3.14314591,133.04,133.0,63.36]
[1765006893626,8.26,133.03,133.01,3.04314591]
[1765006893824,8.26,133.03,133.01,3.70314591]
[1765006894021,8.26,133.03,133.02,3.70314591]
[1765006894427,8.26,133.03,133.02,0.66]
[1765006898834,8.26,133.03,133.02,3.70314591]
[1765006899038,8.26,133.03,133.02,0.66]
[1765006901227,8.26,133.03,133.02,5.40849419]
[1765006902562,0.1,133.04,133.02,12.92608473]
[1765006902742,8.36,133.04,133.03,0.66]
[1765006906249,0.1,133.04,133.03,0.66]
[1765006906452,0.1,133.04,133.03,5.40849419]
[1765006907547,0.1,133.04,133.03,12.92559559]
[1765006907744,0.1,133.04,133.03,21.73554051]
[1765006909458,0.1,133.04,133.03,29.99554051]
[1765006913363,0.1,133.04,133.03,92.69554051]
[1765006913741,0.1,133.04,133.03,109.00440451]
[1765006930089,0.1,133.06,133.03,92.69554051]
[1765006930261,0.1,133.06,133.05,29.86730311]
[1765006930768,0.1,133.06,133.05,33.59561356]
[1765006931271,0.1,133.06,133.05,41.11158499]
[1765006934369,0.1,133.06,133.05,103.81158499]
[1765006935174,0.1,133.06,133.05,82.7542268]
[1765006935378,0.1,133.06,133.05,84.49441054]
[1765006935577,0.1,133.06,133.05,16.32591635]
[1765006935761,0.77,133.06,133.05,37.38327454]
[1765006937493,0.77,133.06,133.01,18.79508251]
[1765006937701,0.77,133.06,133.03,12.26519894]
[1765006939674,0.77,133.06,133.02,37.38485987]
[1765006940179,0.77,133.06,133.03,4.74849419]
[1765006940375,0.77,133.06,133.04,13.55843911]
[1765006940580,0.77,133.06,133.05,4.74849419]
[1765006940976,0.1,133.06,133.05,4.74849419]
[1765006941192,0.1,133.06,133.05,13.55843911]
[1765006941667,0.1,133.06,133.05,21.07441054]
[1765006942077,0.77,133.06,133.04,12.26492179]
[1765006942487,0.77,133.06,133.04,7.5164276]
[1765006942688,0.77,133.06,133.04,12.26492179]
[1765006946172,0.77,133.06,133.04,74.96492179]
[1765006949100,0.77,133.06,133.05,4.74849419]
[1765006951203,0.1,133.06,133.05,4.74849419]
[1765006951418,0.1,133.06,133.05,21.07441054]
[1765006951712,0.1,133.06,133.05,21.79441054]
[1765006952006,0.1,133.06,133.05,84.49441054]
[1765006952893,0.1,133.06,133.05,83.77441054]
[1765006953294,0.77,133.06,133.05,83.77441054]
[1765006953989,0.77,133.06,133.05,62.7]
[1765006957904,0.77,133.06,133.04,67.44849419]
[1765006958889,0.77,133.06,133.04,74.96502776]
[1765006959088,0.77,133.06,133.04,75.61502776]
[1765006959391,0.77,133.06,133.04,62.7]
[1765006959591,0.77,133.06,133.04,67.44849419]
[1765006959913,0.77,133.06,133.04,62.7]
[1765006960101,0.77,133.06,133.04,67.44849419]
[1765006962389,0.77,133.06,133.04,65.73783008]
[1765006963914,0.77,133.06,133.04,3.03783008]
[1765006966020,0.77,133.06,133.03,82.71474295]
[1765006966317,0.77,133.06,133.03,82.06474295]
[1765006969021,0.77,133.06,133.03,82.71474295]
[1765006969620,0.77,133.06,133.03,3.68783008]
[1765006970326,0.77,133.06,133.03,10.55472658]
[1765006970526,0.1,133.06,133.04,3.73783008]
[1765006971018,0.79,133.06,133.04,3.73783008]
[1765006971324,0.79,133.06,133.04,3.03783008]
[1765006973014,0.79,133.06,133.03,73.95472658]
[1765006974525,0.79,133.06,133.03,73.25472658]
[1765006974831,0.1,133.06,133.04,3.73783008]
[1765006977012,0.1,133.06,133.04,3.03783008]
[1765006977213,0.1,133.06,133.05,0.7]
[1765006977620,0.1,133.06,133.04,10.55414749]
[1765006977815,0.1,133.06,133.04,11.25414749]
[1765006978736,0.1,133.06,133.04,73.95414749]
[1765006979114,0.1,133.06,133.04,73.25414749]
[1765006979313,0.1,133.06,133.05,0.7]
[1765006981246,0.1,133.06,133.04,62.7]
[1765006981406,0.79,133.06,133.04,62.7]
[1765006983650,8.30548236,133.06,133.04,62.7]
[1765006984136,0.69,133.05,133.04,62.7]
[1765006984513,7.61548236,133.06,133.04,62.7]
[1765006984830,8.30548236,133.06,133.03,0.7]
[1765006988048,7.61548236,133.06,133.02,73.2554523]
[1765006988249,0.69,133.05,133.02,62.7]
[1765006988931,0.69,133.05,133.01,25.81880892]
[1765006989132,0.69,133.05,133.01,36.37478034]
[1765006989548,8.26,133.04,133.01,36.37478034]
[1765006989752,8.26,133.04,133.02,0.72]
[1765006990747,8.26,133.04,133.02,3.75783008]
[1765006992754,8.95,133.04,133.02,3.03783008]
[1765006992952,8.95,133.04,133.01,20.08591634]
[1765006993272,3.03783008,133.02,132.98,63.42]
[1765006993571,0.69,133.03,132.99,11.27674639]
[1765006993939,0.69,133.03,133.0,0.72]
[1765006994435,11.24509726,133.03,133.0,0.72]
[1765006994657,11.24509726,133.03,132.97,0.72]
[1765006994658,3.03783008,133.02,132.97,0.72]
[1765006994974,8.26,133.01,132.97,12.567775]
[1765006995139,8.95,133.01,132.97,12.567775]
[1765006995340,8.95,133.01,132.98,0.72]
[1765006997956,8.26,133.01,132.99,3.03783008]
[1765006998366,8.26,133.01,133.0,0.72]
[1765007001041,8.26,133.01,133.0,3.75783008]
[1765007001261,8.26,133.01,133.0,20.08657199]
[1765007002758,8.26,133.04,133.0,20.08657199]
[1765007002954,8.26,133.04,133.01,3.75783008]
[1765007003353,8.26,133.04,133.02,3.75783008]
[1765007007866,8.26,133.04,133.03,3.03783008]
[1765007010978,8.26,133.04,133.02,0.72]
[1765007014283,8.95,133.04,133.02,0.72]
[1765007014781,0.69,133.03,133.01,3.03783008]
[1765007015085,0.69,133.03,133.02,3.03783008]
[1765007018282,15.77672121,133.04,133.02,3.03783008]
[1765007018483,16.46672121,133.04,133.02,3.03783008]
[1765007019082,0.72,133.03,132.98,0.69]
[1765007019255,0.72,133.03,132.99,3.03783008]
[1765007019670,0.72,133.03,132.98,3.03783008]
[1765007020060,8.24037866,133.03,132.98,3.03783008]
[1765007020567,0.72,133.02,132.98,3.03783008]
[1765007020771,15.77823171,133.01,132.98,3.03783008]
[1765007021165,0.72,133.0,132.98,3.03783008]
[1765007023984,0.72,133.0,132.98,3.72783008]
[1765007024278,16.49823171,133.01,132.98,3.72783008]
[1765007024482,0.72,133.0,132.98,5.44122158]
[1765007024690,0.72,133.0,132.98,4.75122158]
[1765007025262,15.77823171,133.01,132.98,5.44122158]
[1765007025464,16.49823171,133.01,132.98,5.44122158]
[1765007026458,8.26,133.01,133.0,4.75122158]
[1765007026665,8.26,133.01,133.0,5.44122158]
[1765007027077,8.26,133.01,133.0,4.75122158]
[1765007028064,8.26,133.01,133.0,5.44122158]
[1765007028483,8.26,133.01,133.0,4.75122158]
[1765007029565,8.98,133.01,132.99,5.44122158]
[1765007031182,8.26,133.01,132.99,5.44122158]
[1765007031363,8.98,133.01,132.99,5.44122158]
[1765007031782,8.26,133.01,132.99,5.44122158]
[1765007032283,8.26,133.01,133.0,4.75122158]
[1765007033372,0.72,133.02,133.0,4.75122158]
[1765007033568,7.51715192,133.03,133.0,4.75122158]
[1765007033774,8.26,133.02,133.01,5.44122158]
[1765007034766,8.26,133.02,133.01,4.75122158]
[1765007036075,8.26,133.02,133.0,0.69]
[1765007036076,8.26,133.02,133.0,5.44122158]
[1765007038196,7.51715192,133.03,133.0,5.44122158]
[1765007038375,8.26,133.02,133.0,5.44122158]
[1765007038899,8.92,133.02,132.99,5.46122158]
[1765007039103,8.92,133.02,132.99,0.71]
[1765007039400,0.66,133.01,132.98,5.46122158]
[1765007040092,8.17837153,133.01,132.98,5.46122158]
[1765007045500,0.66,133.01,132.99,5.46122158]
[1765007045710,16.43785955,133.02,132.99,5.46122158]
[1765007045886,0.66,133.01,132.99,5.46122158]
[1765007049000,8.26,133.0,132.99,4.75122158]
[1765007049380,8.26,133.0,132.99,5.45122158]
[1765007051008,8.26,133.0,132.99,0.7]
[1765007051212,8.26,133.0,132.99,5.45122158]
[1765007052102,8.95,133.0,132.97,5.45122158]
[1765007052485,8.26,133.0,132.98,5.45122158]
[1765007060114,8.26,133.0,132.99,5.45122158]
[1765007063623,8.26,133.0,132.99,12.97058393]
[1765007064719,8.26,133.0,132.99,21.78052885]
[1765007065015,8.26,133.02,132.99,21.78052885]
[1765007065204,8.26,133.02,133.01,4.75122158]
[1765007065603,8.26,133.02,133.01,5.45122158]
[1765007077018,8.26,133.02,133.01,12.96945329]
[1765007078621,8.20608475,133.05,133.01,12.96945329]
[1765007078812,8.26,133.04,133.02,0.68]
[1765007079013,8.26,133.04,133.02,5.43122158]
[1765007083929,8.26,133.04,133.03,4.75122158]
[1765007085237,8.26,133.04,133.03,5.43122158]
[1765007085431,8.26,133.04,133.03,4.75122158]
[1765007086310,8.26,133.04,133.02,0.68]
[1765007086519,8.26,133.04,133.03,3.03868412]
[1765007087943,8.26,133.04,133.03,3.71868412]
[1765007088316,8.26,133.04,133.03,3.03868412]
[1765007093966,8.26,133.04,133.03,3.71868412]
[1765007094466,8.26,133.04,133.03,0.68]
[1765007101460,8.97,133.04,133.01,3.68868412]
[1765007101639,0.71,133.03,133.0,66.38868412]
[1765007101840,0.71,133.03,133.0,65.73868412]
[1765007102675,0.71,133.03,133.0,62.7]
[1765007102889,0.71,133.03,132.99,3.03868412]
[1765007103054,19.5252205,133.03,132.99,3.03868412]
[1765007103370,7.51766651,133.02,132.98,3.03868412]
[1765007103549,8.26,133.01,132.98,3.03868412]
[1765007103739,8.97,133.01,132.98,3.03868412]
[1765007104068,16.9803735,133.02,133.0,3.03868412]
[1765007104280,8.26,133.01,133.0,3.03868412]
[1765007104442,8.26,133.01,133.0,3.68868412]
[1765007104642,8.26,133.01,133.0,3.03868412]
[1765007105251,8.97,133.01,132.99,3.03868412]
[1765007106158,8.97,133.01,132.99,3.68868412]
[1765007107672,8.26,133.01,133.0,3.68868412]
[1765007110872,8.26,133.01,133.0,0.65]
[1765007111068,8.26,133.01,133.0,3.68868412]
[1765007114352,8.18666864,133.04,133.0,3.68868412]
[1765007114552,8.26,133.03,133.01,3.70868412]
[1765007114780,8.93,133.03,133.01,3.70868412]
[1765007114966,8.26,133.02,133.01,3.70868412]
[1765007115877,8.18666864,133.04,133.01,3.70868412]
[1765007116065,8.93,133.03,133.01,3.70868412]
[1765007116265,8.26,133.03,133.01,3.70868412]
[1765007116475,8.93,133.03,133.01,3.70868412]
[1765007117079,15.77715314,133.03,133.0,3.03868412]
[1765007117283,0.67,133.02,132.99,3.03868412]
[1765007118079,0.67,133.02,132.99,3.70868412]
[1765007118257,8.18809015,133.02,132.99,3.70868412]
[1765007119180,7.51809015,133.02,133.0,3.70868412]
[1765007119498,15.77724746,133.03,133.01,3.03868412]
[1765007119658,15.77724746,133.03,133.01,3.70868412]
[1765007119980,8.26,133.03,133.01,3.03868412]
[1765007120184,8.26,133.03,133.02,3.70868412]
[1765007129204,8.26,133.05,133.02,20.03629555]
[1765007129380,8.26,133.05,133.03,3.70868412]
[1765007130991,8.26,133.05,133.04,3.03868412]
[1765007131192,8.26,133.05,133.03,3.70868412]
[1765007143821,8.26,133.05,133.03,0.67]
[1765007145621,8.26,133.05,133.03,3.70868412]
[1765007146519,8.26,133.05,133.03,5.42786285]
[1765007150520,8.26,133.05,133.03,0.68]
[1765007150766,0.1,133.06,133.04,5.41786285]
[1765007151029,0.1,133.06,133.05,14.22780777]
[1765007151835,0.1,133.06,133.05,30.53667177]
[1765007152129,0.1,133.06,133.05,38.89667177]
[1765007152706,0.1,133.06,133.05,46.4126432]
[1765007159028,0.1,133.06,133.05,51.16050605]
[1765007160009,0.1,133.06,133.05,113.86050605]
[1765007160197,0.1,133.09,133.05,132.65043464]
[1765007160403,0.1,133.09,133.08,13.55780777]
[1765007160900,0.1,133.09,133.08,41.80452979]
[1765007162019,0.1,133.09,133.08,49.31880691]
[1765007164710,0.1,133.09,133.08,41.05880691]
[1765007168347,0.1,133.09,133.08,49.31880691]
[1765007171950,0.1,133.09,133.08,112.01880691]
[1765007178172,0.1,133.1,133.09,25.11880892]
[1765007178465,0.1,133.11,133.1,13.55780777]
[1765007178664,0.1,133.11,133.1,22.52780777]
[1765007178852,1e-08,133.11,133.1,22.52780777]
[1765007179367,1e-08,133.11,133.1,25.53476135]
[1765007180470,1e-08,133.11,133.1,33.04790935]
[1765007180786,0.1,133.12,133.11,25.11880892]
[1765007180976,0.1,133.12,133.11,88.52880892]
[1765007181363,0.1,133.12,133.11,91.5357625]
[1765007181565,0.1,133.13,133.12,25.11880892]
[1765007181759,0.1,133.13,133.12,38.83667177]
[1765007182181,0.1,133.13,133.12,41.84339932]
[1765007182490,0.1,133.13,133.12,49.35541855]
[1765007186773,0.1,133.13,133.12,112.05541855]
[1765007190465,0.78,133.13,133.12,10.51874678]
[1765007190670,0.1,133.13,133.12,12.25988208]
[1765007190870,0.1,133.13,133.12,21.069827]
[1765007191901,0.1,133.13,133.12,21.779827]
[1765007193274,0.1,133.13,133.12,21.069827]
[1765007193478,0.78,133.13,133.12,21.069827]
[1765007195000,0.1,133.13,133.12,21.069827]
[1765007198810,0.1,133.13,133.12,16.32196415]
[1765007198981,0.1,133.13,133.12,21.069827]
[1765007199506,0.81,133.13,133.12,16.32196415]
[1765007199713,0.81,133.13,133.12,4.74786285]
[1765007199880,0.81,133.13,133.12,29.86667177]
[1765007201195,0.81,133.13,133.12,37.378691]
[1765007202509,0.1,133.13,133.12,37.378691]
[1765007205922,0.1,133.13,133.12,38.058691]
[1765007206502,0.1,133.13,133.12,37.378691]
[1765007206917,0.1,133.13,133.12,38.058691]
[1765007208415,0.1,133.13,133.12,36.34376413]
[1765007213209,0.1,133.13,133.12,36.34376413]
[1765007221321,0.1,133.13,133.12,35.66376413]
[1765007221719,0.1,133.13,133.12,36.37376413]
[1765007223843,0.1,133.13,133.12,35.66376413]
[1765007224015,0.1,133.13,133.09,7.5135877]
[1765007224016,0.78,133.13,133.09,7.5135877]
[1765007224343,3.81293598,133.13,133.08,10.54707078]
[1765007224546,3.03293598,133.1,133.05,10.54881563]
[1765007224948,0.68,133.09,133.06,7.51528813]
[1765007230042,0.68,133.09,133.06,10.54822411]
[1765007232042,10.54588897,133.11,133.06,10.54822411]
[1765007232043,10.54511966,133.12,133.07,11.8428809]
[1765007232249,0.68,133.09,133.07,11.8428809]
[1765007232756,0.68,133.1,133.07,12.5028809]
[1765007233071,0.68,133.1,133.07,19.35766318]
[1765007235962,0.68,133.1,133.07,16.3247272]
[1765007236167,0.68,133.1,133.07,19.35766318]
[1765007236864,0.68,133.1,133.08,3.03293598]
[1765007237573,0.68,133.1,133.07,20.01766318]
[1765007238368,0.68,133.1,133.08,3.69293598]
[1765007238575,0.68,133.1,133.08,3.03293598]
[1765007239877,0.68,133.1,133.08,10.54703643]
[1765007244189,0.68,133.11,133.08,11.20703643]
[1765007245279,0.68,133.11,133.08,10.54703643]
[1765007247381,0.68,133.11,133.08,7.51410045]
[1765007247677,3.03293598,133.1,133.05,28.1517449]
[1765007247866,11.29293598,133.09,133.05,26.85758272]
[1765007248280,0.68,133.08,133.05,26.85758272]
[1765007248482,0.68,133.08,133.05,27.51758272]
[1765007248679,3.71293598,133.08,133.04,19.35928777]
[1765007249098,0.68,133.07,133.04,19.35928777]
[1765007250705,0.68,133.07,133.04,16.32635179]
[1765007250884,0.68,133.07,133.04,19.35928777]
[1765007251609,0.68,133.07,133.04,20.01928777]
[1765007251787,0.68,133.07,133.05,3.03293598]
[1765007258924,8.19497154,133.07,133.0,81.49642817]
[1765007259128,8.26,133.06,133.02,11.26021573]